Cogmind - Beta 10.2 @@@ ROGUE MODE // 2020.11.24 @ 15:30:13 // Halloween2020/ForbiddenLore Player: Luigi Panache Result: Destroyed by G-47 Trooper with Particle Gun Performance ------------- Evolutions (2) 1000 Regions Visited (3) 600 Robots Destroyed (0) 0 Value Destroyed (0) 0 Prototype IDs (1) 20 Alien Tech Used (0) 0 Bonus (470) 470 TOTAL SCORE: 2090 Bonus ------- Pacifist 470 Cogmind --------- Core Integrity 0/550 Matter 227/300 Energy 100/100 System Corruption 0% Temperature Cool (9) Movement Core (50) Location -8/Materials Parts ------- > --- POWER (2) -------- (None) > --- PROPULSION (4) --- (None) > --- UTILITY (3) ------ (None) > --- WEAPON (2) ------- (None) > --- INVENTORY (4) ---- Ion Engine High-capacity Matter Pod (0) Peak State ------------ > --- POWER ------------ Improved Ion Engine > --- PROPULSION ------- Improved Treads Aluminum Leg Aluminum Leg > --- UTILITY ---------- Small Storage Unit > --- WEAPON ----------- (None) > --- INVENTORY -------- Ion Engine High-capacity Matter Pod [Rating: 7] Favorites ----------- Power Ion Engine Engine Ion Engine Propulsion Compact Wheel Treads Improved Treads Leg Aluminum Leg Wheel Compact Wheel Hover Unit Hover Unit Flight Unit Flight Unit Utility Small Storage Unit Storage Small Storage Unit Protection Core Shielding Weapon None Build | -11 -10 -9 -8 ------- Run | Scr Mat Mat Mat Slots Evolved 4 | . . 2 2 Power 1 | . . . 1 Propulsion 2 | . . 1 1 Utility 1 | . . 1 . Weapon . | . . . . Parts Attached 16 | 4 3 3 6 Power 4 | 1 . 2 1 Engine 4 | 1 . 2 1 Core . | . . . . Reactor . | . . . . Propulsion 10 | 2 2 1 5 Treads 1 | . . . 1 Leg 2 | . . . 2 Wheel 4 | 2 1 . 1 Hover 1 | . . . 1 Flight 2 | . 1 1 . Utility 2 | 1 1 . . Device . | . . . . Storage 1 | 1 . . . Processor . | . . . . Hackware . | . . . . Protection 1 | . 1 . . Artifact . | . . . . Weapon . | . . . . Energy Gun . | . . . . Energy Cannon . | . . . . Ballistic Gun . | . . . . Ballistic Cannon . | . . . . Launcher . | . . . . Special Weapon . | . . . . Impact Weapon . | . . . . Slashing Weapon . | . . . . Piercing Weapon . | . . . . Special Melee Weapon . | . . . . Unidentified Prototypes 1 | . . 1 . Parts Lost 12 | . 2 2 8 Power 2 | . 1 . 1 Propulsion 9 | . 1 2 6 Utility 1 | . . . 1 Weapon . | . . . . Highest Loss Streak 5 | . 2 2 5 Average Slot Usage (%) 30 | . 56 27 16 Engine 3 | . 9 . 2 Wheel 8 | . 22 6 . Flight 3 | . 1 8 1 Storage 10 | . 14 11 9 Protection 2 | . 8 . . Naked Turns 1 | . . . 1 Heaviest Build 12 | 9 10 12 11 Greatest Support 32 | 32 32 16 23 Greatest Overweight (x) 3 | . . 3 3 Average Overweight (x) . | . . . . Largest Inventory Capacity 6 | 6 6 6 6 Average Capacity 5 | 5 6 6 5 Most Carried 5 | 3 5 5 5 Average Carried 3 | 1 3 5 3 Final Capacity 6 | 6 6 6 4 Final Carried 5 | 3 5 5 2 Class Distribution -------------------- 100% | Mutant Dominant Class ---------------- Mutant | -10/Materials Mutant | -9/Materials Mutant | -8/Materials Resources | -11 -10 -9 -8 ----------- Run | Scr Mat Mat Mat Matter Collected 227 | 227 . . . Remotely . | . . . . Salvage Created . | . . . . Parts . | . . . . Haulers Intercepted . | . . . . Recyclers Shooed . | . . . . Parts Field Recycled . | . . . . Retrieved Matter . | . . . . Parts Self-Destructed . | . . . . Prevented . | . . . . Kills | -11 -10 -9 -8 ------- Run | Scr Mat Mat Mat Combat Hostiles Destroyed . | . . . . Classes Destroyed . | . . . . Best Kill Streak . | . . . . Combat Bots Only . | . . . . Max Kills in Single Turn . | . . . . Gunslinging . | . . . . Exploded . | . . . . Melee . | . . . . Uniques/NPCs Destroyed . | . . . . Combat | -11 -10 -9 -8 -------- Run | Scr Mat Mat Mat Damage Taken 1579 | . 211 247 1121 Core 722 | . 47 114 561 Absorbed by Shields . | . . . . Core Remaining (%) 84 | 100 81 71 . Volleys Fired . | . . . . Largest . | . . . . Hottest . | . . . . Shots Fired . | . . . . Gun . | . . . . Cannon . | . . . . Launcher . | . . . . Special . | . . . . Kinetic . | . . . . Thermal . | . . . . Explosive . | . . . . Electromagnetic . | . . . . Robot Hit Streak . | . . . . Robot Miss Streak . | . . . . Penetration Max . | . . . . Secondary Targets . | . . . . Shots Hit Robots . | . . . . Core Hits . | . . . . Critical Hits . | . . . . Critical Kills . | . . . . Critical Parts Destroyed . | . . . . Melee Attacks . | . . . . Impact . | . . . . Slashing . | . . . . Piercing . | . . . . Sneak Attacks . | . . . . Combat Hostiles . | . . . . Follow-up Attacks . | . . . . Damage Inflicted . | . . . . Guns . | . . . . Cannons . | . . . . Explosions . | . . . . Melee . | . . . . Ramming . | . . . . Kinetic . | . . . . Thermal . | . . . . Explosive . | . . . . Electromagnetic . | . . . . Impact . | . . . . Slashing . | . . . . Piercing . | . . . . Highest Corruption . | . . . . Average Corruption . | . . . . Corruption Purged . | . . . . Overload Shots . | . . . . Overflow Damage . | . . . . Projectiles . | . . . . Explosions . | . . . . Melee . | . . . . Knockbacks . | . . . . Impact . | . . . . Kinetic . | . . . . Secondary . | . . . . Self-Inflicted Damage . | . . . . Shots . | . . . . Rammed . | . . . . Targets Rammed . | . . . . Kicked . | . . . . Crushed . | . . . . Highest Temperature 270 | . . 270 4 Average Temperature 92 | . . 126 2 Received Heat Transfer 837 | . 114 111 612 Siege Activations . | . . . . Robots Corrupted . | . . . . Combat Hostiles . | . . . . Parts Fried . | . . . . Impact Corruptions . | . . . . Robots Melted . | . . . . Combat Hostiles . | . . . . Parts Melted . | . . . . Heat Transferred . | . . . . Parts Sabotaged . | . . . . Parts Stolen . | . . . . Parts Stripped . | . . . . Power Chain Reactions . | . . . . Missiles Intercepted . | . . . . Alert | -11 -10 -9 -8 ------- Run | Scr Mat Mat Mat Peak Influence 88 | . 20 88 37 Initial 37 | . . 3 37 Average 24 | . 11 53 21 Maximum Alert Level . | . . . . Low Security (%) 100 | 100 100 100 100 Level 1 . | . . . . Level 2 . | . . . . Level 3 . | . . . . Level 4 . | . . . . Level 5 . | . . . . High Security . | . . . . Max Security . | . . . . Squads Dispatched 5 | . . 3 2 Investigation 2 | . . 1 1 Extermination . | . . . . Reinforcement 3 | . . 2 1 Assault . | . . . . Garrison . | . . . . Intercept . | . . . . Construction Impeded . | . . . . Haulers Reinforced . | . . . . Stealth | -11 -10 -9 -8 --------- Run | Scr Mat Mat Mat Distress Signals 1 | . 1 . . Communications Jammed . | . . . . Distress Signals . | . . . . Times Spotted 25 | . 4 12 9 Peak Tracking Total 8 | . 3 8 6 Tactical Retreats 2 | . . 1 1 Traps | -11 -10 -9 -8 ------- Run | Scr Mat Mat Mat Traps Triggered 2 | . . 1 1 Indirectly . | . . . . Trap Hack Attempts . | . . . . Triggered . | . . . . Disarmed . | . . . . Reprogrammed . | . . . . Reused . | . . . . Traps Extracted . | . . . . Installed . | . . . . Triggered . | . . . . Machines | -11 -10 -9 -8 ---------- Run | Scr Mat Mat Mat Machines Disabled . | . . . . Max in Single Turn . | . . . . Machines Sabotaged . | . . . . Garrisons Compromised . | . . . . Overloaded Fab Kills . | . . . . Fab Network Shutdowns . | . . . . Hacking | -11 -10 -9 -8 --------- Run | Scr Mat Mat Mat Machines Accessed 6 | . 1 1 4 Terminals 5 | . . 1 4 Fabricators . | . . . . Repair Stations . | . . . . Recycling Units 1 | . 1 . . Scanalyzers . | . . . . Garrison Access . | . . . . Total Hacks 11 | . 3 1 7 Successful 5 | . 2 . 3 Failed 6 | . 1 1 4 Catastrophic 2 | . . 1 1 Database Lockouts . | . . . . Manual 7 | . . 1 6 Terminals 8 | . . 1 7 Fabricators . | . . . . Repair Stations . | . . . . Recycling Units 3 | . 3 . . Scanalyzers . | . . . . Garrison Access . | . . . . Terminal Hacks 3 | . . . 3 Alert Level 1 | . . . 1 Unreport Threat 1 | . . . 1 Zone Layout 1 | . . . 1 Fabricator Hacks . | . . . . Repair Station Hacks . | . . . . Recycling Unit Hacks 2 | . 2 . . Report Inventory 1 | . 1 . . Retrieve Components 1 | . 1 . . Scanalyzer . | . . . . Garrison Access Hacks . | . . . . Unauthorized Hacks . | . . . . Terminals . | . . . . Fabricators . | . . . . Repair Stations . | . . . . Recycling Units . | . . . . Scanalyzers . | . . . . Garrison Access . | . . . . Data Cores Recovered . | . . . . Used . | . . . . Hacking Detections 5 | . 1 1 3 Full Trace Events . | . . . . Feedback Events . | . . . . Feedback Blocked . | . . . . Robot Schematics Acquired . | . . . . Robots Built . | . . . . Matter . | . . . . Time . | . . . . Total Robot Build Rating . | . . . . Part Schematics Acquired . | . . . . Parts Built . | . . . . Matter . | . . . . Time . | . . . . Total Part Build Rating . | . . . . Parts Repaired . | . . . . Time . | . . . . Parts Recycled . | . . . . Recycled Matter . | . . . . Retrieved Matter . | . . . . Retrieved Components 3 | . 3 . . Parts Scanalyzed . | . . . . Part Schematics Acquired . | . . . . Parts Damaged . | . . . . Bothacking | -11 -10 -9 -8 ------------ Run | Scr Mat Mat Mat Used RIF Installer . | . . . . Robots Hacked . | . . . . Non-combat . | . . . . Combat . | . . . . Robot Hacks Applied . | . . . . Relay Couplers Released . | . . . . Robots Rewired . | . . . . Allies Hacked . | . . . . Hacks Repelled . | . . . . Allies | -11 -10 -9 -8 -------- Run | Scr Mat Mat Mat Total Allies . | . . . . Largest Group . | . . . . Highest-Rated Group . | . . . . Highest-Rated Ally . | . . . . Total Orders . | . . . . Ally Attacks . | . . . . Total Damage . | . . . . Kills . | . . . . Allies Corrupted . | . . . . Allies Melted . | . . . . Intel | -11 -10 -9 -8 ------- Run | Scr Mat Mat Mat Robot Analysis Total . | . . . . Derelict Logs Recovered . | . . . . Drone Launches . | . . . . Drone Recoveries . | . . . . Exploration | -11 -10 -9 -8 ------------- Run | Scr Mat Mat Mat Turns Passed 515 | 43 132 124 216 Spaces Moved 590 | 36 141 223 190 Core 141 | 3 . 28 110 Treads 4 | . . . 4 Legs 13 | . . . 13 Wheels 149 | 33 112 3 1 Hover 15 | . . . 15 Flight 268 | . 29 192 47 Fastest Speed 40 | 50 45 40 40 Average Speed 75 | 95 88 52 88 Slowest Speed 200 | 100 100 200 200 Overloaded Moves . | . . . . Propulsion Burnouts . | . . . . Robots Hopped 12 | . 2 9 1 Cave-ins Triggered . | . . . . Exploration Rate (%) 19 | 4 25 29 19 Regions Visited 3 Branch Regions . Pre-discovered Areas . | . . . . Known Exits Taken . | . . . . Unknown Exits Taken 3 | 1 1 1 . Scrap Searched . | . . . . Spaces Dug . | . . . . Terrain Destroyed . | . . . . Melee . | . . . . Projectile . | . . . . AOE . | . . . . Terrain Rammed . | . . . . Walls Destroyed . | . . . . Machines Disabled . | . . . . Actions | -11 -10 -9 -8 --------- Run | Scr Mat Mat Mat Total 640 | 42 144 218 236 Wait 41 | . . . 41 Move 564 | 35 136 205 188 Hop 11 | . 2 8 1 Pick Up 5 | 3 2 . . Fast Attach 12 | 4 2 3 3 Attach 3 | . . . 3 Detach . | . . . . Swap 1 | . 1 . . Drop 3 | . 1 2 . Fire . | . . . . Melee . | . . . . Ram . | . . . . Kick . | . . . . Crush . | . . . . Escape Stasis . | . . . . Rewire . | . . . . Trap . | . . . . Miscellaneous . | . . . . Route ------- -11/Scrapyard -10/Materials -9/Materials -8/Materials History --------- Turn | Location | Event 20 | -11/Scrapyard | Discovered new exit (range 16) 44 | -11/Scrapyard | Entered Materials 169 | -10/Materials | Discovered new exit (range 15) 176 | -10/Materials | Entered another Materials area 176 | -9/Materials | Evolved 2 slots: Propulsion x1, Utility x1 294 | -9/Materials | Discovered new exit (range 16) 300 | -9/Materials | Entered another Materials area 300 | -8/Materials | Evolved 2 slots: Power x1, Propulsion x1 310 | -8/Materials | Build established: Mutant 495 | -8/Materials | Core integrity fell below 50% 513 | -8/Materials | Core integrity fell below 20% 516 | -8/Materials | Destroyed by G-47 Trooper with Particle Gun Last Messages --------------- Current Alert Level: Low Security 00423_ O-16 Technician: "IFF HANDSHAKE FAILED. SECURING TERMINAL." 00425_ O-16 Technician uses terminal to summon reinforcements. 00425_ ALERT: Hostiles spotted, dispatching reinforcements to Terminal M010. 00425_ O-16 Technician locks terminal. 00429_ Triggered Alarm Trap. 00429_ An alarm sounds. 00429_ ALERT: Alarm triggered, dispatching investigation squad. 00438_ Acquired Hover Unit. 00448_ Hover Unit destroyed. 00449_ Connecting with Terminal... 00465_ Acquired Imp. Ion Engine. 00472_ Acquired Imp. Treads. 00499_ Scanalyzer disabled. 00506_ Aluminum Leg destroyed. 00508_ Imp. Treads destroyed. 00509_ Aluminum Leg destroyed. 00515_ Imp. Ion Engine destroyed. 00515_ Sml. Storage Unit destroyed. Map ----- +----------------------------------------------------+ | ??????????########### #???????? | | ??????????# ## #???????? | | ??????????# ## ##??????? | | ??????????# ] # #??????? | | ??????????# # #??????? | | ??????????# + T #??????? | | ??????????# # #??????? | | ??????????# = # #??????? | | ??????????# ## ##??????? | | ??????????# ## #???????? | | ??????????########### #???????? | | ????????????????????# #???????? | | ????????????????????# #???????? | | ????????????????????# #??####?? | | ???????????????????## #### #?? | | ??????????????##+### #?? | | ??????? #?? | | ??????? T #?? | | ??????? ### ##? | | ????????#+########## ## #? | | ???????????????????######## #? | | ??????????????????????????# T #? | | ??????????????????????????# #? | | ????????????????????######## ##? | | ????????????????????# g # #?? | | ????????????????????# "Sg@ Y #?? | | ????????????????????# ""ggg# #?? | | ????????????????????# "" # #?? | | ????????????????????# ####?? | | ????????????????????# ! #????? | | ????????????????????########????? | | ????????????????????????????????? | | ????????????????????????????????? | | ????????????????????????????????? | | ????????????????????????????????? | | ????????????????????????????????? | | ????????????????????????????????? | | ????????????????????????????????? | | ????????????????????????????????? | | ????????????????????????????????? | | | | | | | | | | | | | | | | | | | | | +----------------------------------------------------+ Best States ------------- Heat Dissipation 31 Energy Generation 12 Energy Capacity 265 Matter Stores 287 Matter Capacity 300 Sight Range 16 Terrain Scan Density 10 Core Shielding 20 Evasion (%) 62 Recoil Reduction 1 Item Schematics ----------------- None Robot Schematics ------------------ None Fabricated ------------ Nothing Alien Tech Used ----------------- None Achievements -------------- None Challenges ------------ None Game ------ Seed RemoteHardenedReconfigurator Manual? 0 Play Time 00:09:53 Cumulative 122.0 hours Start 2020.11.24 @ 15:20:16 End 2020.11.24 @ 15:30:13 Sessions 1 Manual Loads 0 Difficulty Rogue Special Mode Halloween2020/ForbiddenLore Game No. 82 Rogue 24 Adventurer 21 Explorer 37 Win Type - Total 6 Types 6/0/0/0/0/0/0/0/0 Lore% 47 Gallery% 70 Achievement% 57 Wizard Run 0 Options --------- ASCII 1 Keyboard 0 Movement Mouse Keybinds 0 Fullscreen 2 Font 18/Terminus Map View 76x50 Tactical HUD 1 Map Filters NONE Filters NONE Steam 1 RUN: e2b9ff2c-0e5a-42a7-95bd-ec2d67e3bbc8